bitfinex/quotes_SOLUSD_20240712
["timestamp","ask_amount","ask_price","bid_price","bid_amount"]
[1720764895905,7.3427,136.19,136.14,14.51]
[1720764896399,14.51,136.18,136.13,15.8496]
[1720764896615,21.8533,136.18,136.13,14.51]
[1720764897270,7.3437,136.17,136.09,15.6706]
[1720764897473,7.3437,136.17,136.13,14.51]
[1720764898381,21.8533,136.18,136.13,14.51]
[1720764898788,21.8533,136.18,136.09,15.6706]
[1720764899099,14.51,136.17,136.12,14.51]
[1720764899308,21.8533,136.18,136.09,15.6706]
[1720764899474,21.8533,136.18,136.13,14.51]
[1720764900102,14.51,136.18,136.13,14.51]
[1720764900306,15.8177,136.19,136.14,14.51]
[1720764900599,21.8526,136.2,136.15,14.51]
[1720764900807,21.8531,136.19,136.14,14.51]
[1720764900995,7.3432,136.18,136.13,14.51]
[1720764901297,7.3437,136.17,136.13,14.51]
[1720764901612,7.3437,136.17,136.09,15.6706]
[1720764901613,21.8537,136.17,136.12,14.51]
[1720764901782,14.51,136.17,136.12,14.51]
[1720764901980,14.51,136.15,136.1,14.51]
[1720764902301,21.8555,136.14,136.06,15.3944]
[1720764902605,21.8555,136.14,136.09,14.51]
[1720764902791,14.51,136.15,136.1,14.51]
[1720764902992,35.1625,136.16,136.12,14.51]
[1720764903203,20.0,136.16,136.08,14.51]
[1720764903509,20.0,136.16,136.13,14.51]
[1720764904089,7.3434,136.18,136.13,14.51]
[1720764904407,7.3434,136.18,136.14,14.51]
[1720764904912,7.3446,136.16,136.12,14.51]
[1720764905901,7.3439,136.17,136.12,14.51]
[1720764906109,7.3439,136.17,136.09,1.46927378]
[1720764906110,21.8539,136.17,136.09,1.46927378]
[1720764906314,21.8539,136.17,136.12,14.51]
[1720764906807,7.3443,136.16,136.09,46.46927378]
[1720764907112,7.3443,136.16,136.06,15.3944]
[1720764907113,7.3455,136.14,136.06,15.3944]
[1720764907409,7.3455,136.14,136.1,14.51]
[1720764907602,7.346,136.13,136.06,15.3944]
[1720764907792,7.346,136.13,136.09,14.51]
[1720764909122,7.346,136.13,136.08,14.51]
[1720764909410,7.3465,136.12,136.08,14.51]
[1720764909587,27.3465,136.12,136.08,14.51]
[1720764910011,27.3465,136.12,136.09,14.51]
[1720764910212,27.3465,136.12,136.08,14.51]
[1720764910938,37.2325,136.19,136.06,15.3944]
[1720764911129,21.169,136.19,136.13,14.51]
[1720764911336,35.679,136.19,136.09,1.4660905]
[1720764911520,43.022,136.19,136.14,14.51]
[1720764911721,35.679,136.19,136.14,14.51]
[1720764911919,21.169,136.19,136.15,14.51]
[1720764912110,7.68268116,136.21,136.16,14.51]
[1720764912311,7.68268116,136.21,136.18,14.51]
[1720764912540,26.18988591,136.24,136.13,1.46566004]
[1720764912840,7.3419,136.21,136.13,1.46566004]
[1720764913815,7.3419,136.21,136.13,46.46566004]
[1720764914536,7.3421,136.2,136.12,6.6368]
[1720764915638,7.3433,136.18,136.11,45.4195]
[1720764915817,7.3437,136.17,136.11,16.3695]
[1720764916014,7.3434,136.18,136.11,16.3695]
[1720764916255,58.8019294,136.23,136.11,16.91250538]
[1720764916433,7.3423,136.2,136.11,16.91250538]
[1720764917230,7.3426,136.19,136.11,16.91250538]
[1720764917432,7.3421,136.21,136.11,45.96250538]
[1720764917630,20.0,136.2,136.12,45.0]
[1720764917826,20.0,136.2,136.13,0.5429256]
[1720764918027,7.3426,136.19,136.12,0.54292597]
[1720764918222,27.3423,136.2,136.12,0.54292597]
[1720764918438,20.0,136.2,136.12,0.54292597]
[1720764918643,7.3416,136.21,136.12,0.54292597]
[1720764918842,7.3416,136.21,136.13,35.652]
[1720764918843,20.0,136.2,136.13,35.652]
[1720764919042,20.0,136.2,136.14,0.54334179]
[1720764919446,7.3411,136.22,136.14,0.54334179]
[1720764919635,7.3411,136.22,136.14,45.54334179]
[1720764919942,26.53129255,136.27,136.16,15.5698]
[1720764920148,7.68242193,136.26,136.17,0.5434571]
[1720764920336,7.3402,136.24,136.17,0.5434571]
[1720764920850,7.3405,136.23,136.17,0.5434571]
[1720764921155,7.3411,136.22,136.16,15.5698]
[1720764922149,48.09992193,136.26,136.16,15.5698]
[1720764922150,7.3406,136.23,136.16,15.5698]
[1720764924150,7.341,136.22,136.16,15.5698]
[1720764926864,7.3405,136.23,136.16,15.5698]
[1720764927037,27.341,136.22,136.16,15.5698]
[1720764927553,20.0,136.22,136.16,15.5698]
[1720764927855,27.3411,136.22,136.16,15.5698]
[1720764930961,20.0,136.22,136.16,15.5698]
[1720764931259,7.68242193,136.26,136.17,0.55241744]
[1720764931445,7.3397,136.25,136.18,6.2311]
[1720764931853,7.68242193,136.26,136.19,0.55233631]
[1720764931854,15.02132193,136.26,136.19,0.55233631]
[1720764932152,7.3389,136.26,136.19,1.46841327]
[1720764932661,7.3389,136.26,136.23,14.52]
[1720764932863,20.0,136.25,136.23,14.52]
[1720764933248,20.0,136.25,136.21,15.4074]
[1720764933450,20.0,136.25,136.23,14.52]
[1720764934253,7.34,136.24,136.21,15.4074]
[1720764934461,7.34,136.24,136.21,29.9274]
[1720764935072,27.3396,136.25,136.21,29.9274]
[1720764935559,27.3396,136.25,136.22,14.52]
[1720764936843,7.3391,136.26,136.22,14.52]
[1720764937059,7.3379,136.28,136.25,14.52]
[1720764937265,7.67466392,136.29,136.26,14.52]
[1720764937266,7.3374,136.29,136.26,14.52]
[1720764937764,7.3379,136.28,136.26,14.52]
[1720764938137,7.3379,136.28,136.25,14.52]
[1720764938332,7.3375,136.29,136.25,14.52]
[1720764938737,7.3379,136.28,136.23,7.50780164]
[1720764938933,7.3375,136.29,136.25,14.52]
[1720764939242,7.3375,136.29,136.26,14.52]
[1720764942640,7.3375,136.29,136.24,1.467372]
[1720764942641,7.67331369,136.32,136.28,14.52]
[1720764942867,7.67331369,136.32,136.3,14.52]
[1720764943069,31.63663925,136.34,136.31,14.52]
[1720764943366,7.3346,136.34,136.31,14.52]
[1720764943968,20.0,136.33,136.31,14.52]
[1720764944671,20.0,136.33,136.28,1.4669413]
[1720764945667,27.3351,136.33,136.28,1.4669413]
[1720764945852,7.3351,136.33,136.28,1.4669413]
[1720764946048,7.67167724,136.37,136.29,28.99]
[1720764946273,15.5685,136.4,136.32,15.2369]
[1720764946274,22.9,136.4,136.32,15.2369]
[1720764946565,7.332,136.39,136.33,1.46680952]
[1720764946779,40.21315337,136.41,136.33,1.46680952]
[1720764947142,40.21315337,136.41,136.34,6.1124]
[1720764947347,40.21315337,136.41,136.35,1.46659436]
[1720764947548,32.54172372,136.41,136.36,1.4664868]
[1720764947857,7.3309,136.41,136.35,1.4664868]
[1720764948477,7.3309,136.41,136.36,1.46655481]
[1720764948786,7.3309,136.41,136.35,1.46655299]
[1720764949091,20.0,136.4,136.34,7.57902594]
[1720764949980,27.3315,136.4,136.34,7.57902594]
[1720764950177,7.3319,136.39,136.34,6.1124]
[1720764951470,20.0,136.4,136.35,1.4664119]
[1720764951884,27.3309,136.41,136.34,7.5788119]
[1720764952278,7.3314,136.4,136.34,6.1124]
[1720764952467,20.0,136.39,136.34,6.1124]
[1720764952777,27.3322,136.39,136.32,15.2369]
[1720764952984,20.0,136.39,136.32,15.2369]
[1720764953385,7.3337,136.36,136.29,6.3211]
[1720764953565,20.0,136.35,136.29,6.3211]
[1720764953778,27.334,136.35,136.29,6.3211]
[1720764953978,20.0,136.35,136.29,6.3211]
[1720764954191,27.3341,136.35,136.29,6.3211]
[1720764954373,20.0,136.35,136.29,6.3211]
[1720764954572,27.3341,136.35,136.29,6.3211]
[1720764954872,7.3346,136.34,136.29,6.3211]
[1720764955071,27.3341,136.35,136.29,6.3211]
[1720764955594,7.3346,136.34,136.29,6.3211]
[1720764955774,20.0,136.33,136.28,15.5525]
[1720764955975,20.0,136.35,136.28,15.5525]
[1720764955976,38.3354,136.35,136.28,15.5525]
[1720764956178,7.3356,136.32,136.28,15.5525]
[1720764956988,20.0,136.31,136.25,15.1876]
[1720764957165,7.3361,136.32,136.25,15.1876]
[1720764957365,20.0,136.31,136.25,15.1876]
[1720764957586,63.3319,136.38,136.26,28.99]
[1720764957773,7.334,136.35,136.26,28.99]
[1720764957975,20.0,136.34,136.26,28.99]
[1720764958179,27.3347,136.34,136.26,28.99]
[1720764958580,7.3352,136.33,136.26,28.99]
[1720764958768,20.0,136.32,136.26,28.99]
[1720764959380,20.0,136.32,136.27,1.46371932]
[1720764959586,20.0,136.33,136.27,1.46371932]
[1720764960081,27.3352,136.33,136.27,1.46371932]
[1720764960898,27.3352,136.33,136.26,28.99]
[1720764961077,7.3358,136.32,136.26,28.99]
[1720764961278,27.3353,136.33,136.25,15.1876]
[1720764961578,20.0,136.33,136.25,15.1876]
[1720764961774,27.3339,136.36,136.26,73.99]
[1720764961974,7.334,136.35,136.26,73.99]
[1720764962383,20.0,136.34,136.28,28.99]
[1720764962587,7.3335,136.36,136.28,28.99]
[1720764963797,7.3335,136.36,136.29,21.8101]
[1720764963998,7.67286895,136.39,136.29,21.8101]
[1720764964170,15.00516895,136.39,136.3,73.99]
[1720764964375,7.3323,136.39,136.32,28.99]
[1720764964679,7.3324,136.38,136.32,28.99]
[1720764965591,7.3324,136.38,136.3,73.99]
[1720764965901,20.0,136.37,136.3,73.99]
[1720764967395,7.3312,136.41,136.32,28.99]
[1720764967591,7.3312,136.41,136.33,45.0]
[1720764967798,7.332,136.39,136.33,45.0]
[1720764968376,18.3272,136.41,136.31,16.3802]
[1720764968706,20.0,136.4,136.31,16.3802]
[1720764968885,20.0,136.41,136.32,45.0]
[1720764969091,7.333,136.37,136.31,16.3802]
[1720764969400,20.0,136.41,136.32,1.46690028]
[1720764969586,7.3326,136.38,136.32,1.46679268]
[1720764969781,20.0,136.37,136.32,1.46679268]
[1720764969988,7.3321,136.39,136.32,1.46679268]
[1720764970174,27.3327,136.38,136.32,1.46679268]
[1720764970371,7.3327,136.38,136.32,1.46679268]
[1720764970605,20.0,136.37,136.32,46.46679268]
[1720764970787,20.0,136.37,136.32,46.46668533]
[1720764971100,27.333,136.37,136.32,1.46684836]
[1720764971477,20.0,136.37,136.32,1.46684836]
[1720764971679,20.0,136.37,136.31,16.3802]
[1720764971982,20.0,136.39,136.31,16.3802]
[1720764972569,7.3342,136.35,136.31,16.3802]
[1720764973002,20.0,136.34,136.31,16.3802]
[1720764974393,28.99,136.4,136.31,16.3802]
[1720764974589,65.0,136.39,136.31,16.3802]
[1720764974789,7.3333,136.37,136.31,16.3802]
[1720764974991,27.3339,136.36,136.31,16.3802]
[1720764975194,7.334,136.35,136.31,16.3802]
[1720764975386,20.0,136.36,136.31,16.3802]
[1720764975387,27.3337,136.36,136.31,16.3802]
[1720764975789,20.0,136.36,136.31,16.3802]
[1720764976908,27.3335,136.36,136.31,16.3802]
[1720764977103,7.334,136.35,136.31,16.3802]
[1720764977311,27.3337,136.36,136.31,16.3802]
[1720764978104,20.0,136.36,136.31,16.3802]
[1720764978294,7.3342,136.35,136.31,16.3802]
[1720764979002,7.3354,136.33,136.31,16.3802]
[1720764979212,20.0,136.32,136.29,6.3079]
[1720764979508,27.3359,136.32,136.28,15.6668]
[1720764979804,20.0,136.32,136.28,15.6668]
[1720764980300,7.3351,136.33,136.28,15.6668]
[1720764980601,27.3357,136.32,136.28,15.6668]
[1720764981098,20.0,136.32,136.25,22.7759]
[1720764981301,7.3368,136.3,136.25,22.7759]
[1720764981496,27.3377,136.29,136.22,22.711]
[1720764981696,20.0,136.29,136.22,22.711]
[1720764981894,7.3385,136.27,136.22,22.711]
[1720764982098,20.0,136.26,136.22,22.711]
[1720764982299,20.0,136.29,136.22,22.711]
[1720764982793,20.0,136.3,136.22,22.711]
[1720764983502,27.3368,136.3,136.22,22.711]
[1720764983880,20.0,136.3,136.22,22.711]
[1720764984085,7.3375,136.29,136.22,22.711]
[1720764984307,20.0,136.28,136.22,22.711]
[1720764984793,27.3381,136.28,136.22,22.711]
[1720764984981,20.0,136.28,136.22,22.711]
[1720764985402,20.0,136.29,136.22,22.711]
[1720764986406,20.0,136.3,136.22,22.711]
[1720764986610,7.3374,136.29,136.22,22.711]
[1720764986899,20.0,136.28,136.22,22.711]
[1720764988296,20.0,136.29,136.22,51.701]
[1720764988496,20.0,136.3,136.23,45.0]
[1720764988714,27.3362,136.31,136.23,45.0]
[1720764989231,7.3369,136.3,136.23,45.0]
[1720764989410,20.0,136.29,136.22,51.701]
[1720764989725,20.0,136.29,136.23,45.0]
[1720764989905,20.0,136.29,136.24,1.46765749]
[1720764990103,7.3362,136.31,136.24,1.46765749]
[1720764990104,20.0,136.3,136.24,1.46765749]
[1720764990707,27.3369,136.3,136.24,1.46765749]
[1720764991918,27.3369,136.3,136.23,45.0]
[1720764992319,7.67579931,136.33,136.23,45.0]
[1720764992506,7.335,136.34,136.25,15.1782]
[1720764992823,7.3338,136.36,136.26,80.3673]
[1720764993112,7.3346,136.34,136.26,80.3673]
[1720764993710,7.67312327,136.37,136.26,80.3673]
[1720764994115,20.0,136.36,136.26,80.3673]
[1720764994904,7.3347,136.34,136.26,80.3673]
[1720764995696,7.3342,136.35,136.26,80.3673]
[1720764995903,7.67312327,136.37,136.26,80.3673]
[1720764996120,28.3782,136.4,136.26,80.3673]
[1720764996307,7.3335,136.36,136.28,28.99]
[1720764996503,27.334,136.35,136.28,28.99]
[1720764996740,20.0,136.35,136.28,28.99]
[1720764997217,27.334,136.35,136.28,28.99]
[1720764997420,7.3346,136.34,136.27,16.6617]
[1720764998127,27.3342,136.35,136.27,16.6617]
[1720764999118,7.3346,136.34,136.27,16.6617]
[1720764999422,20.0,136.35,136.27,16.6617]
[1720764999616,20.0,136.35,136.28,45.0]
[1720765000002,20.0,136.36,136.28,45.0]
[1720765000201,27.3335,136.36,136.28,45.0]
[1720765001010,52.67262635,136.39,136.3,22.1378]
[1720765001218,4.44926453,136.38,136.31,0.44977977]
[1720765001410,7.3327,136.38,136.31,0.44977977]
[1720765003326,20.0,136.37,136.31,0.44977977]
[1720765003922,27.333,136.37,136.31,0.44977977]
[1720765004113,27.333,136.37,136.3,22.1378]
[1720765004114,7.3338,136.36,136.3,22.1378]
[1720765004314,20.0,136.37,136.3,22.1378]
[1720765004632,7.3325,136.38,136.3,22.1378]
[1720765004927,20.0,136.37,136.3,22.1378]
[1720765005324,20.0,136.37,136.31,1.46689981]
[1720765006131,7.3325,136.38,136.31,1.46689981]
[1720765006433,20.0,136.37,136.31,1.46689981]
[1720765007314,20.0,136.38,136.31,1.46689981]
[1720765007511,20.0,136.38,136.31,75.45689981]
[1720765007716,27.3317,136.4,136.32,15.145]
[1720765007922,20.0,136.4,136.33,1.46682395]
[1720765008215,7.3321,136.39,136.33,1.46682395]
[1720765008412,20.0,136.38,136.33,1.46682395]
[1720765008612,20.0,136.38,136.32,15.145]
[1720765009212,15.00240773,136.41,136.33,6.0636]
[1720765009418,6.0308,136.45,136.33,35.0536]
[1720765009622,7.3302,136.43,136.33,35.0536]
[1720765009909,7.3303,136.42,136.33,35.0536]
[1720765010510,7.3298,136.43,136.34,60.4564]
[1720765010727,20.0,136.42,136.35,15.4564]
[1720765010935,20.0,136.42,136.35,44.4464]
[1720765011913,27.3304,136.42,136.36,0.90464916]
[1720765012917,7.3309,136.41,136.36,0.90464916]
[1720765013224,20.0,136.4,136.36,0.90464916]
[1720765013719,27.3313,136.4,136.35,15.4564]
[1720765014635,7.332,136.39,136.35,15.4564]
[1720765017034,20.0,136.4,136.35,15.4564]
[1720765017242,7.3325,136.38,136.33,6.0636]
[1720765017541,20.0,136.37,136.33,6.0636]
[1720765018121,20.0,136.38,136.33,6.0636]
[1720765018434,7.3315,136.4,136.33,6.0636]
[1720765018435,20.0,136.39,136.33,6.0636]
[1720765018938,27.332,136.39,136.33,6.0636]
[1720765019130,7.3325,136.38,136.33,6.0636]
[1720765019332,20.0,136.37,136.33,6.0636]
[1720765020521,7.3312,136.41,136.33,6.0636]
[1720765020712,20.0,136.4,136.33,6.0636]
[1720765021114,27.3314,136.4,136.33,6.0636]
[1720765021335,7.3314,136.4,136.33,6.0636]
[1720765021538,20.0,136.39,136.33,6.0636]
[1720765022044,27.332,136.39,136.33,6.0636]
[1720765023241,20.0,136.39,136.33,6.0636]
[1720765023850,27.332,136.39,136.33,6.0636]
[1720765024337,20.0,136.39,136.33,6.0636]
[1720765025236,7.331,136.41,136.33,6.0636]
[1720765025624,7.3304,136.42,136.35,15.8143]
[1720765026045,7.33,136.43,136.35,15.8143]
[1720765026349,7.3293,136.44,136.36,80.4395]
[1720765027035,7.3297,136.43,136.36,80.4395]
[1720765027924,7.3293,136.44,136.36,80.4395]
[1720765028120,20.0,136.43,136.36,80.4395]
[1720765028338,20.0,136.43,136.37,15.9257]
[1720765029263,27.3297,136.43,136.37,15.9257]
[1720765029627,20.0,136.43,136.37,15.9257]
[1720765032231,7.3293,136.44,136.37,15.9257]
[1720765032640,20.0,136.43,136.37,15.9257]
[1720765034525,20.0,136.44,136.41,14.48]
[1720765034950,15.3246084,136.47,136.43,15.2183]
[1720765035130,0.8446084,136.47,136.43,29.6983]
[1720765035543,7.3281,136.46,136.43,29.6983]
[1720765035725,7.3281,136.46,136.43,15.2183]
[1720765037138,7.3289,136.45,136.43,15.2183]
[1720765037646,7.3289,136.45,136.39,6.0506]
[1720765037647,7.3311,136.41,136.36,16.6142]
[1720765037857,7.3311,136.41,136.37,14.48]
[1720765038161,20.0,136.4,136.37,14.48]
[1720765038545,20.0,136.4,136.36,16.6142]
[1720765039343,27.3314,136.4,136.36,16.6142]
[1720765039533,20.0,136.4,136.28,22.3829]
[1720765039746,7.3327,136.38,136.29,28.97]
[1720765039960,20.0,136.37,136.29,28.97]
[1720765040943,20.0,136.37,136.3,45.0]
[1720765041147,51.04,136.44,136.31,16.4538]
[1720765041148,20.0,136.38,136.31,16.4538]
[1720765041347,27.3315,136.4,136.31,16.4538]
[1720765042670,27.3315,136.4,136.32,51.0744]
[1720765043039,7.3319,136.39,136.32,6.0744]
[1720765043244,20.0,136.38,136.32,6.0744]
[1720765044374,7.3332,136.37,136.32,6.0744]
[1720765044979,29.66265634,136.49,136.36,15.9403]
[1720765045143,7.329,136.45,136.36,15.9403]
[1720765045340,7.3282,136.46,136.36,15.9403]
[1720765045539,7.3288,136.45,136.37,45.0]
[1720765046363,8.1726084,136.47,136.37,45.0]
[1720765046572,8.1726084,136.47,136.38,6.4248]
[1720765047465,7.3281,136.46,136.38,6.4248]
[1720765047654,8.1724084,136.47,136.38,6.4248]
[1720765048045,7.329,136.45,136.38,6.4248]
[1720765048260,27.3294,136.44,136.38,6.4248]
[1720765048475,20.0,136.44,136.38,6.4248]
[1720765048671,7.3288,136.45,136.38,6.4248]
[1720765048972,20.0,136.44,136.38,6.4248]
[1720765049171,27.3292,136.44,136.38,6.4248]
[1720765049476,20.0,136.44,136.38,6.4248]
[1720765049772,7.66827953,136.46,136.38,6.4248]
[1720765049773,7.3307,136.42,136.38,6.4248]
[1720765049960,7.3299,136.43,136.38,6.4248]
[1720765050160,20.0,136.42,136.38,6.4248]
[1720765050477,27.3305,136.42,136.38,6.4248]
[1720765050770,20.0,136.42,136.36,15.9403]
[1720765051074,7.3311,136.41,136.36,15.9403]
[1720765051281,7.3304,136.42,136.36,15.9403]
[1720765051449,20.0,136.41,136.36,15.9403]
[1720765052286,52.3314,136.4,136.36,15.9403]
[1720765052577,27.3321,136.39,136.34,6.0344]
[1720765053285,20.0,136.39,136.34,6.0344]
[1720765053976,20.0,136.4,136.34,6.0344]
[1720765054292,27.3309,136.41,136.34,6.0344]
[1720765054651,7.3315,136.4,136.34,6.0344]
[1720765054847,20.0,136.39,136.34,6.0344]
[1720765055048,20.0,136.41,136.34,6.0344]
[1720765055274,45.0,136.4,136.34,6.0344]
[1720765055479,20.0,136.39,136.34,6.0344]
[1720765056482,20.0,136.4,136.34,6.0344]
[1720765057287,7.3298,136.43,136.34,35.0044]
[1720765057452,4.44705892,136.42,136.34,35.0044]
[1720765057646,7.33,136.43,136.35,0.46397428]
[1720765057867,7.33,136.43,136.35,0.56800539]
[1720765058062,7.33,136.43,136.36,0.56796373]
[1720765058854,7.3303,136.42,136.36,0.56796373]
[1720765059048,7.3303,136.42,136.34,35.0044]
[1720765059049,7.3317,136.4,136.34,35.0044]
[1720765059254,7.331,136.41,136.34,35.0044]
[1720765059674,7.331,136.41,136.34,6.0344]
[1720765061577,7.66850452,136.43,136.34,6.0344]
[1720765061789,69.44734024,136.42,136.34,6.0344]
[1720765061981,65.0,136.42,136.34,6.0344]
[1720765063093,72.3303,136.42,136.34,6.0344]
[1720765065576,20.0,136.42,136.34,35.0044]
[1720765066663,27.3303,136.42,136.34,35.0044]
[1720765067194,20.0,136.42,136.34,35.0044]
[1720765067393,27.66830221,136.45,136.34,35.0044]
[1720765067571,49.44655799,136.44,136.34,35.0044]
[1720765067759,24.44655799,136.43,136.34,35.0044]
[1720765067960,7.331,136.41,136.34,35.0044]
[1720765068193,27.3314,136.4,136.34,6.0344]
[1720765069295,20.0,136.4,136.34,6.0344]
[1720765070293,20.0,136.41,136.34,6.0344]
[1720765070786,27.3309,136.41,136.34,6.0344]
[1720765071096,27.3309,136.41,136.35,1.46666252]
[1720765071588,7.66830221,136.45,136.36,1.46666241]
[1720765071777,7.3304,136.42,136.36,1.46666241]
[1720765071992,7.3309,136.41,136.34,6.0344]
[1720765072284,35.99010221,136.45,136.34,6.0344]
[1720765072285,7.3329,136.38,136.34,6.0344]
[1720765072596,7.3326,136.38,136.34,6.0344]
[1720765073468,20.0,136.37,136.34,6.0344]
[1720765076687,27.3331,136.37,136.29,15.729]
[1720765077387,20.0,136.37,136.29,44.699]
[1720765077586,20.0,136.38,136.29,44.699]
[1720765077974,27.3325,136.38,136.29,44.699]
[1720765078700,20.0,136.38,136.29,44.699]
[1720765078889,7.333,136.37,136.29,44.699]
[1720765079196,20.0,136.36,136.29,44.699]
[1720765079717,20.0,136.36,136.29,15.729]
[1720765079878,7.334,136.35,136.29,15.729]
[1720765080079,20.0,136.34,136.29,15.729]
[1720765080617,20.0,136.35,136.29,15.729]
[1720765080986,7.3342,136.35,136.29,15.729]
[1720765081504,20.0,136.34,136.29,15.729]
[1720765082079,20.0,136.35,136.29,15.729]
[1720765082392,20.0,136.36,136.29,15.729]
[1720765082788,27.3336,136.36,136.29,15.729]
[1720765083609,20.0,136.36,136.29,15.729]
[1720765084511,15.00176566,136.41,136.31,15.2254]
[1720765084725,4.44803417,136.4,136.33,6.4076]
[1720765084882,7.3313,136.4,136.33,7.8742654]
[1720765085603,15.00136566,136.41,136.33,7.8742654]
[1720765085783,15.00136566,136.41,136.34,15.582]
[1720765085987,15.00136566,136.41,136.35,1.46645037]
[1720765087104,20.0,136.4,136.35,1.46645037]
[1720765087320,36.6217,136.4,136.35,1.46645037]
[1720765087622,7.336,136.32,136.27,16.3126]
[1720765087782,7.3366,136.31,136.27,16.3126]
[1720765088404,7.3358,136.32,136.27,16.3126]
[1720765088609,27.3362,136.31,136.27,16.3126]
[1720765089505,20.0,136.31,136.27,16.3126]
[1720765090711,7.3371,136.3,136.27,16.3126]
[1720765090900,20.0,136.29,136.27,16.3126]
[1720765092207,20.0,136.29,136.23,15.1969]
[1720765092412,50.4087,136.33,136.23,15.1969]
[1720765092413,20.0,136.32,136.23,15.1969]
[1720765092587,7.338,136.28,136.23,15.1969]
[1720765092793,20.0,136.27,136.23,15.1969]
[1720765093509,45.0,136.31,136.23,15.1969]
[1720765093510,7.67423995,136.34,136.23,44.1669]
[1720765093701,7.67423995,136.34,136.24,45.0]
[1720765093900,7.3354,136.33,136.24,45.0]
[1720765094488,7.3353,136.33,136.24,45.0]
[1720765095013,7.67423995,136.34,136.27,15.6647]
[1720765095309,2.91209898,136.4,136.29,28.97]
[1720765095515,7.3335,136.37,136.29,28.97]
[1720765095716,7.67113158,136.39,136.29,28.97]
[1720765095926,7.67113158,136.39,136.3,0.55018674]
[1720765096217,7.3329,136.38,136.3,0.55018674]
[1720765096784,7.3329,136.38,136.28,0.55091049]
[1720765096997,7.3329,136.38,136.28,45.55091049]
[1720765097603,7.67113158,136.39,136.29,44.2506]
[1720765097795,7.3305,136.42,136.31,15.6403]
[1720765097992,16.1095,136.46,136.31,15.6403]
[1720765097993,7.3309,136.41,136.31,15.6403]
[1720765098207,7.3309,136.41,136.32,51.6062]
[1720765099000,20.0,136.4,136.32,51.6062]
[1720765100117,20.0,136.4,136.32,6.6062]
[1720765100118,7.332,136.39,136.32,6.6062]
[1720765100289,20.0,136.38,136.32,6.6062]
[1720765100484,27.3315,136.4,136.32,6.6062]
[1720765100685,7.3321,136.39,136.32,6.6062]
[1720765100901,20.0,136.38,136.32,6.6062]
[1720765101107,27.3326,136.38,136.32,6.6062]
[1720765102014,20.0,136.38,136.32,6.6062]
[1720765102691,27.3325,136.38,136.32,6.6062]
[1720765103095,7.3331,136.37,136.32,6.6062]
[1720765103318,27.3325,136.38,136.32,6.6062]
[1720765104189,7.3329,136.37,136.32,6.6062]
[1720765104587,27.3325,136.38,136.32,6.6062]
[1720765106397,27.3325,136.38,136.33,7.3346]
[1720765106597,7.333,136.37,136.32,13.9417]
[1720765106825,20.0,136.36,136.32,13.9417]
[1720765107216,20.0,136.36,136.33,7.335]
[1720765107427,20.0,136.37,136.34,7.3345]
[1720765107597,20.0,136.38,136.34,7.3345]
[1720765108123,27.3324,136.38,136.32,13.9413]
[1720765108415,7.332,136.39,136.32,6.6062]